fUST/lending_fUST_20251017
["ID","MTS","AMOUNT","RATE_DAILY","PERIOD"]
[391553610,1760647833022,-249.81311391,0.000326,2]
[391553612,1760647833032,-500.0,0.00032743,5]
[391553614,1760647833042,-407.68748979,0.000329,2]
[391553616,1760647833052,-508.15812626,0.000329,2]
[391553618,1760647833068,-1050.34866453,0.000329,2]
[391553620,1760647833080,-342.32545313,0.000329,2]
[391553622,1760647833093,-249.81311391,0.000329,2]
[391553624,1760647833105,-300.0,0.00032945,30]
[391553626,1760647833116,-442.5,0.00033005,2]
[391553628,1760647833127,-359.804244,0.00033165,2]
[391553630,1760647833141,-472.26086048,0.00033187,120]
[391553633,1760647833160,-3536.8,0.00033187,35]
[391553635,1760647833171,-407.68748979,0.000332,2]
[391553637,1760647833183,-508.15812626,0.000332,2]
[391553639,1760647833195,-1050.34866453,0.000332,2]
[391553641,1760647833206,-342.32545313,0.000332,2]
[391553643,1760647833216,-249.81311391,0.000332,2]
[391553646,1760647833229,-3756.67506352,0.00033245,4]
[391553648,1760647833241,-600.0,0.00033557,30]
[391553650,1760647833253,-407.68748979,0.000336,2]
[391553652,1760647833265,-508.15812626,0.000336,2]
[391553654,1760647833277,-1050.34866453,0.000336,2]
[391553656,1760647833289,-342.32545313,0.000336,2]
[391553659,1760647833302,-249.81311391,0.000336,2]
[391553661,1760647833314,-465.0,0.00033605,2]
[391553663,1760647833323,-487.5,0.00034205,2]
[391553665,1760647833333,-2765.43,0.00034674,2]
[391553667,1760647833344,-510.0,0.00034805,2]
[391553669,1760647833354,-532.5,0.00035405,2]
[391553671,1760647833364,-555.0,0.00036005,2]
[391553673,1760647833375,-720.0,0.00036913,30]
[391553675,1760647833386,-359.804244,0.00039654,2]
[391553677,1760647833402,-5530.86,0.00040453,2]
[391553679,1760647833412,-864.0,0.00040604,90]
[391553681,1760647833424,-162.05,0.00042938,2]
[391553684,1760647833436,-162.05,0.00042938,2]
[391553686,1760647833449,-162.05,0.00042938,2]
[391553688,1760647833459,-162.05,0.00042938,2]
[391553690,1760647833471,-162.05,0.00042938,2]
[391553692,1760647833482,-151.56,0.00042938,2]
[391553694,1760647833493,-150.0,0.00043167,2]
[391553696,1760647833503,-378.67,0.00043424,10]
[391553698,1760647833513,-387.35985285,0.00043433,2]
[391553701,1760647833524,-271.66557175,0.00043433,31]
[391553703,1760647833535,-193.44326697,0.00043433,31]
[391553705,1760647833548,-500.0,0.00043433,31]
[391553707,1760647833559,-195.49727558,0.00043433,31]
[391553709,1760647833570,-505.12362562,0.00043433,31]
[391553711,1760647833582,-500.0,0.00043433,2]
[391553713,1760647833595,-500.0,0.00043433,31]
[391553716,1760647833612,-55463.45288469,0.00043434,3]
[391553718,1760647833628,-802.97805321,0.00043434,3]
[391553720,1760647833641,-77.65029149,0.00043434,3]
[391553881,1760647835291,2147.47365446,0.0003,2]
[391554003,1760647838499,-466.6651265,0.00034805,2]
[391554004,1760647838510,-6121.28195555,0.00043434,3]
[391554005,1760647838522,-230.94537793,0.00043443,31]
[391554006,1760647838533,-86919.706,0.00043444,30]
[391554007,1760647838544,-168.0,0.00044193,2]
[391554008,1760647838556,-1000.0,0.00044664,90]
[391554012,1760647838718,-168.0,0.00044669,2]
[391554013,1760647838736,-151.56627,0.00044788,60]
[391554014,1760647838747,-168.0,0.00044854,2]
[391554015,1760647838757,-277.4337271,0.00045176,2]
[391554016,1760647838768,-170.3498113,0.00045176,2]
[391554017,1760647838778,-56266.4309379,0.00045434,3]
[391554018,1760647838788,-6198.93224704,0.00045434,3]
[391554019,1760647838798,-78778.4698,0.00045444,30]
[391554020,1760647838809,-242.16304825,0.00045734,2]
[391554021,1760647838819,-200.0,0.0004589,120]
[391554022,1760647838829,-200.0,0.0004589,120]
[391554023,1760647838840,-242.16304824,0.00046137,2]
[391554024,1760647838851,-359.804244,0.00046143,2]
[391554025,1760647838862,-151.0,0.000462,22]
[391554026,1760647838873,-8296.3,0.00046232,2]
[391554027,1760647838883,-212.04342158,0.00046247,120]
[391554028,1760647838894,-161.55689264,0.00046247,120]
[391554029,1760647838907,-28133.2154689,0.00046479,4]
[391554030,1760647838918,-3099.46612352,0.00046479,4]
[391554031,1760647838928,-212.04342158,0.00046493,120]
[391554032,1760647838938,-156.895219,0.00046538,10]
[391554033,1760647838949,-151.56627,0.00046538,10]
[391554034,1760647838959,-242.16304824,0.00046539,2]
[391554035,1760647838973,-151.0,0.000466,26]
[391554036,1760647838983,-212.04342158,0.00046712,120]
[391554037,1760647838994,-56718.90700848,0.00046732,120]
[391554038,1760647839005,-150.0,0.00046733,2]
[391554039,1760647839015,-411.0,0.00046733,2]
[391554040,1760647839025,-28133.2154689,0.00046811,4]
[391554041,1760647839035,-3099.46612352,0.00046811,4]
[391554042,1760647839050,-200.0,0.00046821,20]
[391554043,1760647839061,-200.0,0.00046821,20]
[391554044,1760647839071,-200.0,0.00046821,20]
[391554045,1760647839082,-200.0,0.00046821,20]
[391554046,1760647839095,-200.0,0.00046821,20]
[391554047,1760647839105,-200.0,0.00046821,20]
[391554048,1760647839115,-200.0,0.00046821,20]
[391554049,1760647839125,-200.0,0.00046821,20]
[391554050,1760647839135,-200.0,0.00046821,20]
[391554051,1760647839145,-200.0,0.00046821,20]
[391554052,1760647839155,-200.0,0.00046821,20]
[391554053,1760647839164,-200.0,0.00046821,20]
[391554054,1760647839174,-200.0,0.00046821,20]
[391554055,1760647839184,-200.0,0.00046821,20]
[391554056,1760647839194,-200.0,0.00046821,20]
[391554057,1760647839204,-200.0,0.00046821,20]
[391554058,1760647839214,-200.0,0.00046821,20]
[391554059,1760647839223,-200.0,0.00046821,20]
[391554060,1760647839233,-200.0,0.00046821,20]
[391554061,1760647839243,-200.0,0.00046821,20]
[391554062,1760647839252,-200.0,0.00046821,20]
[391554063,1760647839262,-200.0,0.00046821,20]
[391554064,1760647839272,-200.0,0.00046821,20]
[391554065,1760647839282,-200.0,0.00046821,20]
[391554066,1760647839292,-84399.6464068,0.00046822,4]
[391554067,1760647839303,-21696.2628646,0.00046822,4]
[391554068,1760647839313,-370000.0,0.00046832,2]
[391554069,1760647839324,-150.0,0.00046873,10]
[391554070,1760647839334,-161.55689264,0.00046877,120]
[391554071,1760647839344,-212.04342158,0.00046932,120]
[391554072,1760647839355,-242.16304824,0.00046942,2]
[391554073,1760647839365,-151.0,0.00047,28]
[391554074,1760647839375,-5932.12,0.00047144,46]
[391554075,1760647839385,-212.04342158,0.00047151,120]
[391554076,1760647839395,-3099.46612352,0.00047334,4]
[391554077,1760647839406,-242.16304824,0.00047344,2]
[391554078,1760647839415,-9015.84224987,0.00047344,2]
[391554079,1760647839425,-212.04342158,0.0004737,120]
[391554080,1760647839434,-156.895219,0.00047405,2]
[391554081,1760647839443,-151.56627,0.00047405,2]
[391554082,1760647839455,-250.0,0.00047421,10]
[391554083,1760647839464,-3099.46612352,0.00047424,4]
[391554084,1760647839474,-15497.3306176,0.00047434,4]
[391554085,1760647839484,-250.0,0.00047443,30]
[391554086,1760647839494,-250.0,0.00047443,30]
[391554087,1760647839503,-250.0,0.00047443,30]
[391554088,1760647839512,-250.0,0.00047443,30]
[391554089,1760647839522,-250.0,0.00047443,30]
[391554090,1760647839531,-250.0,0.00047443,30]
[391554091,1760647839540,-250.0,0.00047443,30]
[391554092,1760647839550,-250.0,0.00047443,30]
[391554093,1760647839559,-250.0,0.00047443,30]
[391554094,1760647839568,-250.0,0.00047443,30]
[391554095,1760647839577,-250.0,0.00047443,30]
[391554096,1760647839586,-250.0,0.00047443,30]
[391554097,1760647839595,-250.0,0.00047443,30]
[391554098,1760647839605,-250.0,0.00047443,30]
[391554099,1760647839614,-250.0,0.00047443,30]
[391554100,1760647839627,-250.0,0.00047443,30]
[391554101,1760647839640,-250.0,0.00047443,30]
[391554102,1760647839656,-250.0,0.00047443,30]
[391554103,1760647839669,-250.0,0.00047443,30]
[391554104,1760647839678,-250.0,0.00047443,30]
[391554105,1760647839688,-31511.3879,0.00047444,30]
[391554106,1760647839697,-123757.57284884,0.00047444,30]
[391554107,1760647839709,-10224.90006426,0.00047444,30]
[391554108,1760647839721,-5567.26965054,0.00047444,30]
[391554109,1760647839731,-190565.24008148,0.00047444,30]
[391554124,1760647840770,-188.34251052,0.000323,2]
[391554125,1760647840780,-74.6099991,0.00047444,30]
[391554126,1760647840791,-263113.73483467,0.00047444,30]
[391554127,1760647840802,-5087.46887221,0.00047444,30]
[391554161,1760647843798,-593.0,0.00047444,30]
[391554162,1760647843853,-28853.94443094,0.00047444,30]
[391554163,1760647843864,-224246.05327295,0.00047444,30]
[391554164,1760647843875,-3835.01864005,0.00047444,30]
[391554206,1760647846872,-193.70521362,0.000323,2]
[391554208,1760647846881,-164.13438117,0.00032305,2]
[391554210,1760647846890,-429.5071499,0.00047444,30]
[391554215,1760647846928,-3261.44,0.00047444,30]
[391554218,1760647846939,-3267.37550931,0.00047444,30]
[391554223,1760647846950,-5375.0,0.00047444,30]
[391554227,1760647846966,-19150.0,0.00047444,30]
[391554238,1760648058047,417.15472785,0.00029,2]
[391554240,1760648236302,417.15472785,0.00025,10]
[391554241,1760648236780,417.15472785,0.00024,7]
[391554242,1760648237271,417.15472785,0.00024,3]
[391554243,1760648238769,417.15472785,0.00025,10]
[391554244,1760648239272,417.15472785,0.00024,7]
[391554245,1760648241112,417.15472785,0.00024,3]
[391554246,1760648380005,417.15472785,0.00029,2]
[391554247,1760648429829,300.0,0.00029,2]
[391554251,1760648739140,-400.0,0.00032399,2]
[391554252,1760648739162,-351.0,0.00032399,3]
[391554253,1760648739185,-265.11445284,0.000324,2]
[391554254,1760648739206,-220.3573995,0.000324,2]
[391554255,1760648739226,-186.56365952,0.000324,2]
[391554256,1760648739246,-167.41556492,0.000324,2]
[391554257,1760648739267,-218.47402443,0.000324,2]
[391554258,1760648739290,-227.90862045,0.000324,2]
[391554259,1760648739310,-183.12602,0.000324,2]
[391554260,1760648739331,-260.27063113,0.000324,2]
[391554261,1760648739364,-220.3573995,0.000327,2]
[391554262,1760648739387,-186.56365952,0.000327,2]
[391554263,1760648739408,-167.41556492,0.000327,2]
[391554264,1760648739430,-218.47402443,0.000327,2]
[391554265,1760648739452,-492.45402326,0.000327,2]
[391554266,1760648841085,-193.70521361,0.000324,2]
[391554267,1760648841104,-164.91912041,0.000324,2]
[391554268,1760648853090,-23.42339011,0.000324,2]
[391554269,1760648853113,-185.95858337,0.000324,2]
[391554270,1760648853134,-163.85551832,0.000324,2]
[391554271,1760648853154,-165.26804962,0.000324,2]
[391554272,1760648853175,-305.9054052,0.00032699,2]
[391554273,1760648872718,2138.56197936,0.0003,2]
[391554274,1760648880530,168.24,0.00015984,3]
[391554275,1760648946463,1308.81546999,0.00028766,2]
[391554276,1760648946485,3691.18453001,0.00028766,2]
[391554277,1760648946744,1469.31075615,0.00022266,2]
[391554278,1760649008420,9391.03503853,0.0003,2]
[391554307,1760649031802,-150.32,0.00030527,15]
[391554308,1760649031811,-150.32,0.00030627,15]
[391554310,1760649031821,-150.32,0.00030727,15]
[391554313,1760649031831,-150.32,0.00030827,15]
[391554314,1760649031840,-150.32,0.00030927,15]
[391554317,1760649031850,-150.35044284,0.00031027,15]
[391554318,1760649031859,-400.0,0.00031869,3]
[391554320,1760649031868,-400.0,0.00031869,3]
[391554322,1760649031878,-908.43143342,0.00031869,3]
[391554498,1760649037644,-691.56856658,0.00031869,3]
[391554501,1760649037653,-400.0,0.00031869,2]
[391554502,1760649037663,-400.0,0.00031869,3]
[391554504,1760649037672,-400.0,0.00031869,3]
[391554507,1760649037682,-2153.35199682,0.0003187,7]
[391554509,1760649037693,-3486.63455915,0.0003187,7]
[391554511,1760649037704,-707.15051486,0.0003187,7]
[391554513,1760649037718,-2502.98575476,0.0003187,7]
[391554516,1760649037740,-16164.87717441,0.0003187,7]
[391554518,1760649037750,-175.97057361,0.000324,2]
[391554521,1760649037762,-194.79975765,0.000324,2]
[391554522,1760649037772,-192.77622778,0.000324,2]
[391554524,1760649037782,-360.0,0.00032503,2]
[391554527,1760649037791,-185.95858337,0.000327,2]
[391554529,1760649037801,-163.85551832,0.000327,2]
[391554530,1760649037811,-165.26804962,0.000327,2]
[391554532,1760649037820,-16926.54691682,0.000327,2]
[391554533,1760649037829,-170.55278538,0.00032899,2]
[391554534,1760649037839,-1600.0,0.00032999,3]
[391554535,1760649037849,-402.59971063,0.00033,2]
[391554536,1760649037860,-163.85551832,0.00033,2]
[391554537,1760649037869,-165.26804962,0.00033,2]
[391554538,1760649037878,-163.85551832,0.000333,2]
[391554539,1760649037887,-165.26804962,0.000333,2]
[391554540,1760649037896,-176.383209,0.00034164,60]
[391554541,1760649037906,-560.0,0.00034282,3]
[391554542,1760649037915,-560.0,0.00034282,3]
[391554543,1760649037925,-560.0,0.00034282,2]
[391554544,1760649037935,-200.0,0.00034282,3]
[391554545,1760649037944,-560.0,0.00034282,3]
[391554546,1760649037954,-2240.0,0.00034423,3]
[391554547,1760649037963,-2724.8,0.00034803,2]
[391554548,1760649037973,-5000.0,0.00035266,4]
[391554549,1760649037983,-2240.0,0.00035456,3]
[391554550,1760649037993,-381.89967,0.00035553,120]
[391554551,1760649038002,-500.0,0.00036525,5]
[391554552,1760649038012,-446.0,0.00036877,3]
[391554553,1760649038021,-760.0,0.00036877,3]
[391554554,1760649038031,-783.0,0.00036877,2]
[391554555,1760649038040,-500.0,0.00037073,5]
[391554556,1760649038050,-743.0,0.00037183,3]
[391554557,1760649038060,-206.59,0.00037434,10]
[391554558,1760649038069,-172.16,0.00037434,10]
[391554559,1760649038079,-500.0,0.00037443,15]
[391554560,1760649038088,-39540.4666,0.00037444,7]
[391554561,1760649038098,-392.58,0.00037995,3]
[391554562,1760649038108,-394.0,0.00038095,3]
[391554563,1760649038118,-4040.35507942,0.00039344,3]
[391554564,1760649038128,-500.0,0.000394,5]
[391554565,1760649038138,-356.55115888,0.000394,5]
[391554566,1760649038148,-500.0,0.000394,5]
[391554567,1760649038157,-860.8,0.00039424,10]
[391554568,1760649038167,-622.0,0.00039434,3]
[391554569,1760649038177,-8439.96464067,0.00039434,3]
[391554570,1760649038187,-929.83983708,0.00039434,3]
[391554571,1760649038198,-500.0,0.00039434,3]
[391554572,1760649038207,-161.66176455,0.00039443,15]
[391554573,1760649038217,-98798.4898,0.00039444,7]
[391554574,1760649038226,-511.21993405,0.00039473,5]
[391554575,1760649038236,-500.0,0.00039473,5]
[391554576,1760649038246,-500.0,0.00039473,5]
[391554577,1760649038256,-500.0,0.00039473,5]
[391554578,1760649038266,-500.0,0.00039473,5]
[391554579,1760649038276,-500.0,0.00039473,5]
[391554580,1760649038285,-397.0,0.00039668,5]
[391554581,1760649038295,-500.0,0.00040021,5]
[391554582,1760649038305,-5449.6,0.00040604,2]
[391554583,1760649038315,-194.0,0.00041,90]
[391554584,1760649038325,-242.16304825,0.000414,2]
[391554585,1760649038335,-150.0,0.00041424,2]
[391554586,1760649038345,-698.51,0.00041434,30]
[391554587,1760649038354,-5626.64309378,0.00041434,3]
[391554588,1760649038368,-619.89322472,0.00041434,3]
[391554589,1760649038377,-79038.7918,0.00041444,7]
[391554590,1760649038386,-381.89967,0.00041479,120]
[391554591,1760649038396,-636.42,0.000415,7]
[391554592,1760649038406,-469.23,0.000415,14]
[391554593,1760649038415,-172.5,0.00042024,2]
[391554594,1760649038425,-195.0,0.00042624,2]
[391554595,1760649038435,-242.16304824,0.00042886,2]
[391554596,1760649038447,-10834.21843856,0.00043124,2]
[391554597,1760649038457,-217.5,0.00043224,2]
[391554598,1760649038467,-8439.96464067,0.00043434,3]
[391554599,1760649038476,-929.83983708,0.00043434,3]
[391554600,1760649038485,-118558.1878,0.00043444,30]
[391554601,1760649038495,-240.0,0.00043824,2]
[391554602,1760649038505,-242.16304824,0.00044372,2]
[391554603,1760649038514,-162.257469,0.00044394,3]
[391554604,1760649038524,-262.5,0.00044424,2]
[391554605,1760649038533,-285.0,0.00045024,2]
[391554606,1760649038543,-156.895219,0.00045434,3]
[391554607,1760649038554,-151.56627,0.00045434,3]
[391554608,1760649038563,-162.257469,0.00045434,3]
[391554609,1760649038574,-155.065435,0.00045434,3]
[391554610,1760649038584,-154.375915,0.00045434,3]
[391554611,1760649038594,-411.0,0.00045434,2]
[391554612,1760649038604,-8439.96464067,0.00045434,3]
[391554613,1760649038614,-929.83983708,0.00045434,3]
[391554614,1760649038624,-150.0,0.00045443,2]
[391554615,1760649038634,-98798.4898,0.00045444,30]
[391554616,1760649038644,-200.0,0.00045444,20]
[391554617,1760649038653,-200.0,0.00045444,20]
[391554618,1760649038663,-200.0,0.00045444,20]
[391554619,1760649038672,-200.0,0.00045444,20]
[391554620,1760649038683,-200.0,0.00045444,20]
[391554621,1760649038692,-200.0,0.00045444,20]
[391554622,1760649038703,-200.0,0.00045444,20]
[391554623,1760649038712,-200.0,0.00045444,20]
[391554624,1760649038722,-200.0,0.00045444,20]
[391554625,1760649038731,-200.0,0.00045444,20]
[391554626,1760649038741,-200.0,0.00045444,20]
[391554627,1760649038750,-200.0,0.00045444,20]
[391554628,1760649038760,-200.0,0.00045444,20]
[391554629,1760649038769,-200.0,0.00045444,20]
[391554630,1760649038779,-200.0,0.00045444,20]
[391554631,1760649038788,-200.0,0.00045444,20]
[391554632,1760649038801,-200.0,0.00045444,20]
[391554633,1760649038810,-200.0,0.00045444,20]
[391554634,1760649038821,-200.0,0.00045444,20]
[391554635,1760649038832,-200.0,0.00045444,20]
[391554636,1760649038842,-200.0,0.00045444,20]
[391554637,1760649038851,-200.0,0.00045444,20]
[391554638,1760649038860,-200.0,0.00045444,20]
[391554639,1760649038870,-200.0,0.00045444,20]
[391554640,1760649038881,-200.0,0.00045444,20]
[391554641,1760649038891,-200.0,0.00045444,20]
[391554642,1760649038901,-200.0,0.00045444,20]
[391554643,1760649038911,-200.0,0.00045444,20]
[391554644,1760649038920,-200.0,0.00045444,20]
[391554645,1760649038930,-200.0,0.00045444,20]
[391554646,1760649038941,-500.0,0.00045473,10]
[391554647,1760649038951,-162.257469,0.00045474,20]
[391554648,1760649038961,-307.5,0.00045624,2]
[391554649,1760649038972,-151.0,0.000458,21]
[391554650,1760649038982,-242.16304824,0.00045858,2]
[391554651,1760649038992,-500.0,0.00046021,10]
[391554652,1760649039002,-330.0,0.00046224,2]
[391554653,1760649039012,-10834.21843856,0.00046234,2]
[391554654,1760649039021,-159.53743148,0.00046247,120]
[391554655,1760649039031,-159.53743147,0.00046247,120]
[391554656,1760649039041,-8174.41,0.00046404,2]
[391554657,1760649039050,-15000.0,0.000465,120]
[391554658,1760649039060,-151.0,0.000466,25]
[391554659,1760649039069,-303.39201028,0.00046731,7]
[391554660,1760649039207,-500.0,0.00046731,120]
[391554661,1760649039218,-352.5,0.00046824,2]
[391554662,1760649039228,-159.53743148,0.00046877,120]
[391554663,1760649039239,-159.53743147,0.00046877,120]
[391554664,1760649039248,-2813.32154689,0.00047223,4]
[391554665,1760649039258,-309.94661236,0.00047223,4]
[391554667,1760649039268,-56718.90700848,0.00047233,120]
[391554669,1760649039278,-221.270465,0.00047315,2]
[391554670,1760649039288,-2813.32154689,0.00047323,4]
[391554671,1760649039297,-309.94661236,0.00047323,4]
[391554672,1760649039307,-19693.2508282,0.00047333,4]
[391554673,1760649039316,-2169.62628652,0.00047333,4]
[391554674,1760649039326,-284.77914731,0.00047342,120]
[391554675,1760649039335,-500.0,0.00047342,120]
[391554676,1760649039345,-1000.0,0.00047342,2]
[391554677,1760649039354,-1000.0,0.00047342,2]
[391554678,1760649039367,-1000.0,0.00047342,2]
[391554679,1760649039376,-887.0908933,0.00047342,2]
[391554680,1760649039386,-500.0,0.00047343,120]
[391554681,1760649039396,-500.0,0.00047343,120]
[391554682,1760649039406,-500.0,0.00047343,120]
[391554683,1760649039415,-500.0,0.00047343,120]
[391554684,1760649039424,-500.0,0.00047343,120]
[391554685,1760649039435,-500.0,0.00047343,120]
[391554688,1760649039445,-500.0,0.00047343,120]
[391554691,1760649039454,-500.0,0.00047343,120]
[391554693,1760649039464,-500.0,0.00047343,120]
[391554695,1760649039473,-500.0,0.00047343,120]
[391554697,1760649039483,-500.0,0.00047343,120]
[391554699,1760649039492,-500.0,0.00047343,120]
[391554701,1760649039500,-500.0,0.00047343,120]
[391554702,1760649039510,-500.0,0.00047343,120]
[391554704,1760649039519,-500.0,0.00047343,120]
[391554706,1760649039529,-500.0,0.00047343,120]
[391554708,1760649039539,-500.0,0.00047343,120]
[391554710,1760649039548,-500.0,0.00047343,120]
[391554712,1760649039557,-500.0,0.00047343,120]
[391554714,1760649039567,-500.0,0.00047343,120]
[391554716,1760649039576,-500.0,0.00047343,120]
[391554718,1760649039585,-500.0,0.00047343,120]
[391554720,1760649039594,-500.0,0.00047343,120]
[391554722,1760649039603,-500.0,0.00047343,120]
[391554724,1760649039612,-500.0,0.00047343,120]
[391554726,1760649039621,-500.0,0.00047343,120]
[391554728,1760649039631,-500.0,0.00047343,120]
[391554730,1760649039640,-500.0,0.00047343,120]
[391554732,1760649039649,-500.0,0.00047343,120]
[391554734,1760649039661,-500.0,0.00047343,120]
[391554736,1760649039670,-500.0,0.00047343,120]
[391554738,1760649039679,-500.0,0.00047343,120]
[391554740,1760649039689,-500.0,0.00047343,120]
[391554742,1760649039698,-500.0,0.00047343,120]
[391554744,1760649039708,-500.0,0.00047343,120]
[391554746,1760649039717,-500.0,0.00047343,120]
[391554748,1760649039726,-500.0,0.00047343,120]
[391554750,1760649039736,-500.0,0.00047343,120]
[391554752,1760649039745,-500.0,0.00047343,120]
[391554754,1760649039754,-499.94,0.00047343,120]
[391554756,1760649039763,-175296.10116319,0.00047343,2]
[391554764,1760649039838,-7585.84279065,0.00047343,2]
[391554766,1760649039850,-507.34145989,0.00047343,2]
[391554785,1760649042958,-3306.15824414,0.00047343,2]
[391554786,1760649042970,-370.79451131,0.00047343,2]
[391554797,1760649045974,-45785.93818,0.00047343,2]
[391554798,1760649102251,152.0,0.0003,2]
[391554799,1760649136960,177.87594174,0.0003,2]
[391554801,1760649240694,279.09901973,0.00026027,30]
[391554802,1760649240716,2863.10098027,0.00026027,30]
[391554803,1760649299751,417.15472785,0.00029,2]
[391554805,1760649430509,205.12520659,0.00025205,2]
[391554806,1760649430862,235.89398758,0.00025805,2]
[391554807,1760649431356,266.66276857,0.00026405,2]
[391554808,1760649431621,297.43154956,0.00027005,2]
[391554809,1760649432016,328.20033055,0.00027605,2]
[391554810,1760649432399,358.96911154,0.00028205,2]
[391554811,1760649432777,389.73789253,0.00028805,2]
[391554812,1760649433186,420.50667352,0.00029405,2]
[391554816,1760649754710,989.7,0.0002904,120]
[391554831,1760649919850,417.15472785,0.00029,2]
[391554843,1760650018089,-300.41117943,0.00030005,2]
[391554847,1760650048722,150.0,0.00025205,2]
[391554848,1760650049078,-165.04515383,0.00030037,2]
[391554849,1760650049097,-168.82697409,0.00030137,2]
[391554850,1760650049233,-380.0,0.00030427,2]
[391554851,1760650049254,-666.0,0.00030686,2]
[391554852,1760650049273,-845.5095289,0.00030706,2]
[391554853,1760650049293,-392.28,0.00031179,2]
[391554854,1760650049314,-95.59942428,0.00031354,2]
[391554855,1760650049345,172.5,0.00025805,2]
[391554856,1760650049525,195.0,0.00026405,2]
[391554857,1760650049931,217.5,0.00027005,2]
[391554858,1760650050307,240.0,0.00027605,2]
[391554859,1760650050684,262.5,0.00028205,2]
[391554860,1760650051052,285.0,0.00028805,2]
[391554861,1760650051428,307.5,0.00029405,2]
[391554862,1760650060574,417.15472785,0.00025,10]
[391554863,1760650061560,563.21731574,0.0003,2]
[391554864,1760650061581,10000.01,0.0003,2]
[391554865,1760650061604,10000.01,0.0003,2]
[391554866,1760650061626,10000.01,0.0003,2]
[391554867,1760650061651,10000.01,0.0003,2]
[391554869,1760650061673,10000.01,0.0003,2]
[391554870,1760650061697,10000.01,0.0003,2]
[391554871,1760650061720,10000.01,0.0003,2]
[391554872,1760650061743,10000.01,0.0003,2]
[391554873,1760650061764,9505.95513346,0.0003,2]
[391554874,1760650069960,417.15472785,0.00025,10]
[391554875,1760650073202,76.90013869,0.000299,5]
[391554876,1760650073224,742.2533089,0.000299,5]
[391554877,1760650073582,417.15472785,0.00025,10]
[391554878,1760650078914,8840.60196325,0.00024774,2]
[391554879,1760650078936,7815.71857358,0.00024774,2]
[391554880,1760650083621,2184.29142642,0.0003,2]
[391554881,1760650083645,1645.45219177,0.0003,2]
[391554883,1760650091190,417.15472785,0.00024,7]
[391554884,1760650093957,417.15472785,0.00024,7]
[391554885,1760650094674,7520.24835253,0.000298,120]
[391554886,1760650094696,724.35527043,0.000298,120]
[391554887,1760650100774,273.93004396,0.00021,2]
[391554888,1760650104771,300.0,0.0003,2]
[391554889,1760650110752,6673.81573376,0.00029,120]
[391554890,1760650112098,260.05789957,0.0002,30]
[391554891,1760650114989,1767.85105228,0.00022,2]
[391554892,1760650115012,10000.01,0.00022,2]
[391554893,1760650115034,10000.01,0.00022,2]
[391554894,1760650115056,10000.01,0.00022,2]
[391554895,1760650115079,2232.11894772,0.00022,2]
[391554896,1760650115512,7767.89105228,0.00025,30]
[391554897,1760650115533,10000.01,0.00025,30]
[391554898,1760650115557,10000.01,0.00025,30]
[391554899,1760650115579,10000.01,0.00025,30]
[391554900,1760650115601,9232.07894772,0.00025,30]
[391554901,1760650115758,300.0,0.0003,2]
[391554902,1760650117406,467.93105228,0.000298,10]
[391554903,1760650117435,10000.01,0.000298,10]
[391554904,1760650117466,17206.82278155,0.000298,10]
[391554905,1760650118972,10000.01,0.00028,3]